bitfinex-derivatives/quotes_BTCF0:USTF0_20250514
["timestamp","ask_amount","ask_price","bid_price","bid_amount"]
[1747231765383,0.003,103780.0,103770.0,3.27082567]
[1747231765681,0.3639,103780.0,103770.0,3.96639967]
[1747231765874,0.4604,103780.0,103770.0,3.96639967]
[1747231766074,0.2904,103780.0,103770.0,3.96639967]
[1747231766679,0.4830864,103780.0,103770.0,1.27757413]
[1747231766978,0.5230864,103780.0,103770.0,1.46218813]
[1747231767282,0.5230864,103780.0,103770.0,2.80018813]
[1747231767478,0.4830864,103780.0,103770.0,2.80018813]
[1747231767672,0.2904,103780.0,103770.0,2.80018813]
[1747231767869,0.1939,103780.0,103770.0,2.80018813]
[1747231768173,0.1939,103780.0,103770.0,3.45463967]
[1747231769680,0.1939,103780.0,103770.0,3.34590213]
[1747231769874,0.1939,103780.0,103770.0,3.63925367]
[1747231770076,0.003,103780.0,103770.0,4.15001367]
[1747231770380,0.1967,103790.0,103780.0,0.1926864]
[1747231770681,0.1967,103790.0,103780.0,1.21815194]
[1747231770883,0.102,103800.0,103790.0,0.1926678]
[1747231771081,0.2987,103800.0,103790.0,0.9247818]
[1747231771570,0.2987,103800.0,103790.0,1.11524412]
[1747231772272,0.3087,103800.0,103790.0,1.11524412]
[1747231773785,0.3057,103800.0,103790.0,0.93063012]
[1747231773977,0.3027,103800.0,103790.0,1.11524412]
[1747231775085,0.3027,103800.0,103790.0,1.40859566]
[1747231775676,0.3027,103800.0,103790.0,1.41421637]
[1747231776474,0.3027,103800.0,103790.0,2.91421637]
[1747231778289,0.4953493,103800.0,103790.0,2.72960237]
[1747231778585,0.8553493,103800.0,103790.0,2.54210237]
[1747231778772,0.8553493,103800.0,103790.0,2.24313012]
[1747231778976,0.4953493,103800.0,103790.0,2.24313012]
[1747231779671,0.4953493,103800.0,103790.0,2.24875083]
[1747231780493,0.4953493,103800.0,103790.0,2.54210237]
[1747231782388,0.4953493,103800.0,103790.0,2.81801637]
[1747231783192,0.4953493,103800.0,103790.0,2.63340237]
[1747231783390,0.4953493,103800.0,103790.0,2.81801637]
[1747231783689,1.4007633,103800.0,103790.0,0.10198303]
[1747231783888,1.7471073,103800.0,103790.0,0.00562071]
[1747231784098,2.4192273,103800.0,103790.0,0.00562071]
[1747231784287,1.9892273,103800.0,103790.0,0.00562071]
[1747231787293,1.4791073,103800.0,103790.0,0.00562071]
[1747231787488,1.8915233,103800.0,103790.0,0.19828851]
[1747231787695,1.9878673,103800.0,103790.0,0.00562071]
[1747231787990,0.1926678,103790.0,103780.0,2.250814]
[1747231788193,0.4840678,103790.0,103780.0,2.250814]
[1747231788490,0.4840678,103790.0,103780.0,2.34715775]
[1747231788796,0.6640678,103790.0,103780.0,2.35277846]
[1747231789293,0.6650678,103790.0,103780.0,2.35277846]
[1747231789495,0.4850678,103790.0,103780.0,2.35277846]
[1747231789886,0.4850678,103790.0,103780.0,2.34715775]
[1747231790794,0.4860678,103790.0,103780.0,2.34715775]
[1747231791503,0.7660678,103790.0,103780.0,2.05814375]
[1747231791888,0.7660678,103790.0,103780.0,2.25083015]
[1747231792599,0.5360678,103790.0,103780.0,2.25083015]
[1747231795191,0.5360678,103790.0,103780.0,0.45714375]
[1747231795394,1.56516601,103790.0,103760.0,0.88835556]
[1747231795594,1.56516601,103790.0,103760.0,0.6363071]
[1747231795595,0.553505,103770.0,103760.0,0.6363071]
[1747231795799,0.992119,103770.0,103760.0,0.34295556]
[1747231795987,1.462919,103770.0,103760.0,0.43375556]
[1747231796290,1.624919,103770.0,103760.0,0.43375556]
[1747231796490,1.624919,103770.0,103760.0,0.62647906]
[1747231797299,1.624919,103770.0,103760.0,0.62847906]
[1747231797797,1.975691,103770.0,103760.0,0.43575556]
[1747231797993,2.160305,103770.0,103760.0,0.34495556]
[1747231798299,1.975691,103770.0,103760.0,0.34695556]
[1747231798886,1.976691,103770.0,103760.0,0.34495556]
[1747231799091,1.979691,103770.0,103760.0,0.34295556]
[1747231800104,2.17896447,103770.0,103760.0,0.34295556]
[1747231800500,2.17796447,103770.0,103760.0,0.34295556]
[1747231800693,2.18096447,103770.0,103760.0,0.34295556]
[1747231800999,2.43096447,103770.0,103760.0,0.34295556]
[1747231801205,0.1927235,103760.0,103750.0,0.00192762]
[1747231801410,1.2605375,103760.0,103750.0,0.00192762]
[1747231801996,0.1927793,103730.0,103720.0,0.14678363]
[1747231802195,0.1928164,103710.0,103700.0,0.33610679]
[1747231802404,1.4410444,103710.0,103700.0,0.33610679]
[1747231802599,1.8482444,103710.0,103700.0,0.33610679]
[1747231803203,2.0102444,103710.0,103700.0,0.24290679]
[1747231804104,2.0112444,103710.0,103700.0,0.25090679]
[1747231804406,2.0112444,103710.0,103700.0,0.25390679]
[1747231804806,2.0102444,103710.0,103700.0,0.24590679]
[1747231805106,2.1010444,103710.0,103700.0,0.24890679]
[1747231806902,3.059256,103710.0,103690.0,0.29258243]
[1747231807095,3.059256,103710.0,103670.0,0.60382791]
[1747231807096,0.0964322,103690.0,103670.0,0.00192911]
[1747231807297,1.6153002,103680.0,103670.0,0.09632911]
[1747231807503,1.9925002,103680.0,103670.0,0.09632911]
[1747231807694,0.1929094,103660.0,103650.0,0.30932084]
[1747231807903,0.1929467,103640.0,103630.0,0.24624408]
[1747231808203,0.1929839,103620.0,103610.0,0.10544144]
[1747231808405,1.2191979,103620.0,103610.0,0.10544144]
[1747231808598,1.9136979,103620.0,103610.0,0.02612849]
[1747231809004,2.0983119,103620.0,103610.0,0.02612849]
[1747231809200,2.2603119,103620.0,103610.0,0.02612849]
[1747231810003,1.7521119,103620.0,103610.0,0.21913099]
[1747231810201,2.2603119,103620.0,103610.0,0.12372849]
[1747231810602,2.2603119,103620.0,103610.0,0.31673099]
[1747231810804,2.2603119,103620.0,103610.0,0.12372849]
[1747231811003,2.2603119,103620.0,103610.0,0.31673099]
[1747231811204,2.3568239,103620.0,103610.0,0.02612849]
[1747231811408,2.1086239,103620.0,103610.0,0.02612849]
[1747231811603,2.6168639,103620.0,103610.0,0.02912849]
[1747231811799,2.6168639,103620.0,103610.0,0.03212849]
[1747231812001,2.1086239,103620.0,103610.0,0.03212849]
[1747231812201,2.6168639,103620.0,103610.0,0.03212849]
[1747231812903,0.5412839,103620.0,103610.0,0.87928253]
[1747231813106,0.5412839,103620.0,103610.0,0.70568253]
[1747231813107,0.7948439,103620.0,103610.0,0.70568253]
[1747231813409,0.7949239,103620.0,103610.0,0.70568253]
[1747231813709,0.7949239,103620.0,103610.0,1.06648253]
[1747231814205,0.9795379,103620.0,103610.0,0.70568253]
[1747231814409,1.2995379,103620.0,103610.0,0.70568253]
[1747231815001,0.8612839,103620.0,103610.0,0.70568253]
[1747231815211,0.6992839,103620.0,103610.0,0.67468003]
[1747231815412,1.2446979,103620.0,103610.0,0.86768253]
[1747231815903,0.8600839,103620.0,103610.0,0.86768253]
[1747231816202,0.8600839,103620.0,103610.0,0.70568253]
[1747231817313,0.4072839,103620.0,103610.0,0.70568253]
[1747231817509,0.12,103620.0,103610.0,1.34760765]
[1747231817808,0.6817184,103630.0,103620.0,0.1929839]
[1747231818115,0.8763324,103630.0,103620.0,0.83563544]
[1747231818308,0.5952291,103630.0,103620.0,0.83563544]
[1747231818500,0.5046891,103630.0,103620.0,0.93214656]
[1747231818706,0.4464453,103630.0,103620.0,1.30803361]
[1747231818907,1.9927299,103640.0,103630.0,0.1929653]
[1747231819105,1.4856899,103640.0,103630.0,0.83561684]
[1747231819310,2.1773439,103640.0,103630.0,0.65773859]
[1747231819510,2.1773439,103640.0,103630.0,0.85070389]
[1747231819713,2.1773439,103640.0,103630.0,0.65773859]
[1747231819912,2.1873439,103640.0,103630.0,0.65773859]
[1747231820518,1.6803039,103640.0,103630.0,0.85070389]
[1747231820711,2.1873039,103640.0,103630.0,0.85070389]
[1747231821511,2.1773039,103640.0,103630.0,0.85070389]
[1747231821705,1.9926899,103640.0,103630.0,0.85070389]
[1747231821905,2.1773039,103640.0,103630.0,0.65773859]
[1747231822107,2.2073039,103640.0,103630.0,0.85070389]
[1747231822307,2.2073039,103640.0,103630.0,0.65773859]
[1747231822812,2.1773039,103640.0,103630.0,0.65773859]
[1747231823119,2.4073039,103640.0,103630.0,0.10448705]
[1747231823819,2.4073039,103640.0,103630.0,0.49453859]
[1747231823820,2.1873039,103640.0,103630.0,0.49453859]
[1747231824719,0.1929839,103620.0,103610.0,0.01666215]
[1747231825019,1.0917179,103620.0,103610.0,0.40001369]
[1747231825222,1.2743179,103620.0,103610.0,0.40001369]
[1747231825720,1.2743179,103620.0,103610.0,0.49641369]
[1747231825917,1.2743179,103620.0,103610.0,0.50041369]
[1747231826419,1.2743179,103620.0,103610.0,0.50441369]
[1747231826725,1.0897039,103620.0,103610.0,0.50441369]
[1747231827018,0.9972239,103620.0,103610.0,0.50441369]
[1747231827213,0.5364239,103620.0,103610.0,0.66641369]
[1747231827615,0.4462239,103620.0,103610.0,1.50134131]
[1747231828612,0.1929839,103620.0,103610.0,1.50134131]
[1747231829714,0.1929839,103620.0,103610.0,1.31672731]
[1747231830418,0.1929839,103620.0,103610.0,0.95592731]
[1747231831121,0.1929839,103620.0,103610.0,1.31672731]
[1747231831512,0.5913123,103630.0,103620.0,0.1929839]
[1747231831711,0.5913123,103630.0,103620.0,0.46625154]
[1747231831912,0.1929796,103630.0,103620.0,0.65923544]
[1747231832116,0.1929796,103630.0,103620.0,1.55485124]
[1747231832425,0.1929796,103630.0,103620.0,2.87023724]
[1747231832720,0.1929796,103630.0,103620.0,2.87223724]
[1747231833413,0.18815286,103630.0,103620.0,2.87223724]
[1747231834620,0.18815286,103630.0,103620.0,2.87423724]
[1747231834822,0.18815286,103630.0,103620.0,3.05885124]
[1747231835729,0.18815286,103630.0,103620.0,3.06447195]
[1747231836020,0.4207918,103640.0,103630.0,0.1929653]
[1747231836222,0.1949467,103640.0,103630.0,1.20873084]
[1747231836429,0.002,103640.0,103630.0,1.46233084]
[1747231836628,0.1949467,103640.0,103630.0,1.55883264]
[1747231837126,0.1949467,103640.0,103630.0,1.72083264]
[1747231838121,0.002,103640.0,103630.0,3.22083264]
[1747231839817,0.1949467,103640.0,103630.0,2.78261864]
[1747231840014,0.2149467,103640.0,103630.0,3.03621864]
[1747231840832,0.1949467,103640.0,103630.0,3.03621864]
[1747231841020,0.1949467,103640.0,103630.0,2.67541864]
[1747231841224,0.1949467,103640.0,103630.0,3.03621864]
[1747231842817,0.002,103640.0,103630.0,3.03621864]
[1747231843730,0.1949467,103640.0,103630.0,3.22083264]
[1747231843924,0.1949467,103640.0,103630.0,3.03621864]
[1747231844120,0.8444607,103640.0,103630.0,1.8438018]
[1747231844318,0.9361607,103640.0,103630.0,0.2473]
[1747231844721,1.1688007,103640.0,103630.0,0.2473]
[1747231844922,1.3041867,103640.0,103630.0,0.162]
[1747231845123,0.1929653,103630.0,103620.0,0.00562071]
[1747231845327,1.1721793,103630.0,103620.0,0.00562071]
[1747231845628,1.5657793,103630.0,103620.0,0.00562071]
[1747231846230,1.8173793,103630.0,103620.0,0.00562071]
[1747231846430,1.8173793,103630.0,103620.0,0.00762071]
[1747231847428,1.8173793,103630.0,103620.0,0.20060461]
[1747231847635,1.8173793,103630.0,103620.0,0.00762071]
[1747231848026,1.8173793,103630.0,103620.0,0.00962071]
[1747231848631,1.5273793,103630.0,103620.0,0.20260461]
[1747231849136,0.7092853,103630.0,103620.0,0.20260461]
[1747231849336,0.7092853,103630.0,103620.0,0.58585615]
[1747231849828,0.4567653,103630.0,103620.0,0.58585615]
[1747231850034,0.7092453,103630.0,103620.0,0.58585615]
[1747231850231,0.7092453,103630.0,103620.0,0.83585615]
[1747231850436,0.4567653,103630.0,103620.0,0.83585615]
[1747231851326,0.4567653,103630.0,103620.0,1.10865615]
[1747231851527,0.4567653,103630.0,103620.0,0.74785615]
[1747231851930,1.0021793,103630.0,103620.0,0.45450461]
[1747231852236,1.1221793,103630.0,103620.0,0.45450461]
[1747231853238,1.1221793,103630.0,103620.0,0.17162071]
[1747231853537,1.3421793,103630.0,103620.0,0.17162071]
[1747231853736,1.1575653,103630.0,103620.0,0.17162071]
[1747231853933,1.3421793,103630.0,103620.0,0.17162071]
[1747231854136,1.3421793,103630.0,103620.0,0.00962071]
[1747231855528,1.3421793,103630.0,103620.0,0.00983306]
[1747231856438,1.0021793,103630.0,103620.0,0.00983306]
[1747231856738,1.1121793,103630.0,103620.0,0.00983306]
[1747231857936,1.3321793,103630.0,103620.0,0.00983306]
[1747231858734,1.6132933,103630.0,103620.0,6e-08]
[1747231858943,1.4286793,103630.0,103620.0,0.00562077]
[1747231861739,1.3321793,103630.0,103620.0,0.00562077]
[1747231861937,1.40525357,103630.0,103620.0,0.00562077]
[1747231862629,1.22063957,103630.0,103620.0,0.00562077]
[1747231862828,1.22063957,103630.0,103620.0,0.29897231]
[1747231862829,1.07525357,103630.0,103620.0,0.29897231]
[1747231863041,1.13525357,103630.0,103620.0,0.38917231]
[1747231864540,1.33525357,103630.0,103620.0,0.38917231]
[1747231864742,1.33525357,103630.0,103620.0,0.29897231]
[1747231865244,1.33525357,103630.0,103620.0,0.00562077]
[1747231865741,1.33525357,103630.0,103620.0,0.09082077]
[1747231866341,1.33525357,103630.0,103620.0,0.00562077]
[1747231866937,1.51986757,103630.0,103620.0,7e-08]
[1747231867137,1.61636757,103630.0,103620.0,7e-08]
[1747231867336,1.24713957,103630.0,103620.0,1e-08]
[1747231867935,1.24713957,103630.0,103620.0,0.00562072]
[1747231868140,1.24713957,103630.0,103620.0,2e-08]
[1747231868331,1.61636757,103630.0,103620.0,2e-08]
[1747231868931,0.1930025,103610.0,103600.0,0.10144784]
[1747231869135,1.9838165,103610.0,103600.0,0.10144784]
[1747231869354,2.0744165,103610.0,103600.0,0.10144784]
[1747231869644,2.2471165,103610.0,103600.0,0.10144784]
[1747231870337,2.2471165,103610.0,103600.0,0.39479938]
[1747231870535,0.0482582,103600.0,103570.0,0.00096548]
[1747231870835,0.7384724,103580.0,103570.0,0.17296548]
[1747231871039,0.8438584,103580.0,103570.0,0.36604258]
[1747231871240,1.5330324,103580.0,103570.0,0.33496548]
[1747231871543,1.5330324,103580.0,103570.0,0.52804258]
[1747231871847,1.0684184,103580.0,103570.0,0.52804258]
[1747231872041,1.0684184,103580.0,103570.0,0.53304258]
[1747231872238,1.0684184,103580.0,103570.0,0.53804258]
[1747231872539,0.5638584,103580.0,103570.0,0.53804258]
[1747231872935,0.5538584,103580.0,103570.0,0.63459097]
[1747231873540,0.1930584,103580.0,103570.0,0.63459097]
[1747231874535,0.1930584,103580.0,103570.0,0.99539097]
[1747231874932,0.81894537,103590.0,103580.0,0.1930584]
[1747231875139,0.81894537,103590.0,103580.0,0.6181584]
[1747231875437,0.81894537,103590.0,103580.0,0.9789584]
[1747231875639,0.81894537,103590.0,103580.0,2.21470679]
[1747231876036,0.56626537,103590.0,103580.0,2.21770679]
[1747231876237,0.56626537,103590.0,103580.0,2.57850679]
[1747231876437,0.31438537,103590.0,103580.0,2.57850679]
[1747231876647,0.31438537,103590.0,103580.0,2.58150679]
[1747231877851,0.49899937,103590.0,103580.0,2.58150679]
[1747231878150,0.49899937,103590.0,103580.0,2.22070679]
[1747231878354,0.9521111,103590.0,103580.0,2.1241584]
[1747231878540,0.2513111,103590.0,103580.0,2.22069747]
[1747231879155,0.4359251,103590.0,103580.0,2.22069747]
[1747231879350,1.1267251,103590.0,103580.0,2.1241584]
[1747231879542,1.3784851,103590.0,103580.0,1.9311]
[1747231879740,1.4629851,103590.0,103580.0,1.9311]
[1747231880241,1.4629851,103590.0,103580.0,1.93672071]
[1747231880443,1.6475991,103590.0,103580.0,1.95124479]
[1747231880855,1.7334991,103590.0,103580.0,1.95124479]
[1747231881153,1.5488851,103590.0,103580.0,1.95124479]
[1747231881458,1.7334991,103590.0,103580.0,1.95124479]
[1747231881956,1.3642711,103590.0,103580.0,0.45124479]
[1747231882139,1.7334991,103590.0,103580.0,0.45124479]
[1747231885159,1.8173991,103590.0,103580.0,0.27854479]
[1747231885458,1.5488851,103590.0,103580.0,0.27854479]
[1747231885759,1.3388851,103590.0,103580.0,0.36654479]
[1747231885953,1.3388851,103590.0,103580.0,0.45004479]
[1747231886149,1.2355911,103590.0,103580.0,0.64310319]
[1747231886646,1.4202051,103590.0,103580.0,0.64310319]
[1747231886847,0.8747911,103590.0,103580.0,0.64310319]
[1747231887042,1.0594051,103590.0,103580.0,0.64310319]
[1747231887243,0.9294051,103590.0,103580.0,0.64310319]
[1747231887559,0.7447911,103590.0,103580.0,0.64310319]
[1747231888354,0.4931111,103590.0,103580.0,0.64310319]
[1747231888551,0.9293651,103590.0,103580.0,0.64310319]
[1747231889056,0.7447511,103590.0,103580.0,0.64310319]
[1747231889260,0.4929511,103590.0,103580.0,0.64310319]
[1747231890160,0.6775651,103590.0,103580.0,0.64310319]
[1747231891461,0.6775651,103590.0,103580.0,0.62857911]
[1747231893065,1.0383651,103590.0,103580.0,0.62857911]
[1747231893250,0.8637511,103590.0,103580.0,0.64278697]
[1747231893455,1.2483651,103590.0,103580.0,0.64278697]
[1747231893755,1.2483251,103590.0,103580.0,0.64278697]
[1747231894158,1.0637111,103590.0,103580.0,0.64278697]
[1747231894365,0.8875251,103590.0,103580.0,0.73932604]
[1747231894561,0.1950212,103600.0,103590.0,0.1930398]
[1747231894862,0.1950212,103600.0,103590.0,0.7331398]
[1747231895057,0.1950212,103600.0,103590.0,2.3951398]
[1747231895262,0.002,103600.0,103590.0,2.49166955]
[1747231895458,0.1950212,103600.0,103590.0,2.49166955]
[1747231895962,0.26809547,103600.0,103590.0,2.49266955]
[1747231896766,0.26809547,103600.0,103590.0,2.49466955]
[1747231898849,0.45270947,103600.0,103590.0,2.13386955]
[1747231899049,0.82270947,103600.0,103590.0,1.8443]
[1747231899253,1.1771952,103600.0,103590.0,2.0373398]
[1747231899454,1.1771952,103600.0,103590.0,1.8443]
[1747231899666,1.7897952,103600.0,103590.0,1.8443]
[1747231900569,1.7897952,103600.0,103590.0,2.0373398]
[1747231900770,1.7897952,103600.0,103590.0,1.8443]
[1747231901159,1.6051812,103600.0,103590.0,0.3443]
[1747231901364,1.7897952,103600.0,103590.0,0.2562]
[1747231902063,1.7897952,103600.0,103590.0,0.4182]
[1747231902269,1.7897952,103600.0,103590.0,0.2562]
[1747231902472,1.7897952,103600.0,103580.0,0.08912071]
[1747231902473,0.1930398,103590.0,103580.0,0.08912071]
[1747231902768,1.5356678,103590.0,103580.0,1e-08]
[1747231902973,1.5356678,103590.0,103580.0,0.01456238]
[1747231903161,1.6976678,103590.0,103580.0,0.01456238]
[1747231904272,1.5356678,103590.0,103580.0,0.00300001]
[1747231904669,1.7871878,103590.0,103580.0,0.00300001]
[1747231904972,1.7871878,103590.0,103580.0,0.00600001]
[1747231905368,1.4263878,103590.0,103580.0,0.00600001]
[1747231905564,1.6025738,103590.0,103580.0,0.00600001]
[1747231905767,1.6025738,103590.0,103580.0,0.09010001]
[1747231906070,1.6025738,103590.0,103580.0,0.25210001]
[1747231906271,1.6025738,103590.0,103580.0,0.34220001]
[1747231907276,1.3510538,103590.0,103580.0,0.34220001]
[1747231907576,1.95093791,103590.0,103580.0,0.34220001]
[1747231907874,2.13555191,103590.0,103580.0,0.25210001]
[1747231908271,2.13555191,103590.0,103580.0,0.09010001]
[1747231909167,1.76632391,103590.0,103580.0,0.18020001]
[1747231909367,2.13555191,103590.0,103580.0,0.18020001]
[1747231909977,2.14549163,103590.0,103580.0,0.18020001]
[1747231910175,2.14549163,103590.0,103580.0,0.34220001]
[1747231910579,2.14549163,103590.0,103580.0,0.1267007]
[1747231910875,0.1930584,103580.0,103570.0,1.59096548]
[1747231911063,1.2404724,103580.0,103570.0,8e-08]
[1747231911266,1.2404724,103580.0,103550.0,0.00193134]
[1747231911267,0.1930957,103560.0,103550.0,0.00193134]
[1747231911469,1.6413497,103560.0,103550.0,0.09223134]
[1747231911775,2.0945317,103560.0,103550.0,0.00193134]
[1747231911970,0.193133,103540.0,103530.0,0.19713447]
[1747231912279,1.932667,103540.0,103530.0,0.35913447]
[1747231912469,2.39608313,103540.0,103530.0,0.25166567]
[1747231912664,2.21146913,103540.0,103530.0,0.21179787]
[1747231912863,1.70814913,103540.0,103530.0,0.21179787]
[1747231913163,2.11500513,103540.0,103530.0,0.04979787]
[1747231913570,2.11540513,103540.0,103530.0,0.24294957]
[1747231913876,1.745327,103540.0,103530.0,0.04979787]
[1747231914077,1.745327,103540.0,103530.0,0.38489787]
[1747231914390,2.106127,103540.0,103530.0,0.38489787]
[1747231914678,2.106127,103540.0,103530.0,0.57804957]
[1747231914868,1.921513,103540.0,103530.0,0.57804957]
[1747231915069,1.921513,103540.0,103530.0,0.57904957]
[1747231915373,2.108207,103540.0,103530.0,0.57904957]
[1747231915768,1.747407,103540.0,103530.0,0.57904957]
[1747231916174,1.562793,103540.0,103530.0,0.57904957]
[1747231916374,1.664387,103540.0,103530.0,0.57904957]
[1747231916774,1.334387,103540.0,103530.0,0.5292517]
[1747231917280,1.574387,103540.0,103530.0,0.5292517]
[1747231917481,1.657487,103540.0,103530.0,0.5292517]
[1747231918177,1.657487,103540.0,103530.0,0.3361]
[1747231919379,1.657487,103540.0,103530.0,0.164]
[1747231919778,1.657487,103540.0,103530.0,0.2502]
[1747231920176,1.657487,103540.0,103530.0,0.0882]
[1747231920375,1.657487,103540.0,103530.0,0.002]
[1747231920580,0.1931703,103520.0,103510.0,0.09980842]
[1747231920783,1.8856243,103520.0,103510.0,0.18600842]
[1747231921174,2.0618243,103520.0,103510.0,0.18600842]
[1747231921784,2.0618243,103520.0,103510.0,0.37919742]
[1747231921973,1.5160503,103520.0,103510.0,0.38319742]
[1747231922286,1.2644643,103520.0,103510.0,0.54519742]
[1747231922471,0.02,103520.0,103510.0,0.92061142]
[1747231922673,0.02,103520.0,103470.0,0.67113569]
[1747231922674,0.3608,103480.0,103430.0,0.33986534]
[1747231922881,0.923329,103450.0,103440.0,0.37651265]
[1747231923086,1.772769,103450.0,103440.0,0.37651265]
[1747231923382,1.123541,103450.0,103440.0,0.37651265]
[1747231923588,0.5541197,103440.0,103430.0,0.43026534]
[1747231923880,1.2333477,103440.0,103430.0,0.33986534]
[1747231924078,1.0487337,103440.0,103430.0,0.35497944]
[1747231924275,0.1933384,103430.0,103420.0,1.8859531]
[1747231924480,1.07344783,103430.0,103420.0,1.9701531]
[1747231924681,1.32524783,103430.0,103420.0,1.9701531]
[1747231924978,1.0645784,103430.0,103420.0,1.9701531]
[1747231925184,0.7041384,103430.0,103420.0,2.1547671]
[1747231925383,0.7041384,103430.0,103420.0,2.1635102]
[1747231925584,0.5541384,103430.0,103420.0,2.1635102]
[1747231925975,0.5541384,103430.0,103420.0,1.9721531]
[1747231926175,0.8741384,103430.0,103420.0,1.9721531]
[1747231926790,1.15252896,103430.0,103420.0,1.9741531]
[1747231926979,0.8741384,103430.0,103420.0,1.9741531]
[1747231927286,1.0657784,103430.0,103420.0,1.73477959]
[1747231927683,0.5541384,103430.0,103420.0,1.92813669]
[1747231927989,0.3628,103440.0,103430.0,0.1933384]
[1747231928182,0.2266,103440.0,103430.0,0.1933384]
[1747231928484,0.1933384,103430.0,103420.0,0.44059739]
[1747231928682,0.3916001,103440.0,103430.0,0.29002682]
[1747231928683,0.2266,103440.0,103430.0,0.29002682]
[1747231928883,0.4199197,103440.0,103430.0,1.6933384]
[1747231929274,0.4199197,103440.0,103430.0,1.79001747]
[1747231929478,0.4599197,103440.0,103430.0,1.79001747]
[1747231929978,0.002,103440.0,103430.0,1.79001747]
[1747231930174,0.1953197,103440.0,103430.0,1.79001747]
[1747231930386,0.1953197,103440.0,103430.0,1.88669747]
[1747231930387,0.002,103440.0,103430.0,1.88669747]
[1747231930688,0.6861197,103440.0,103430.0,1.88669747]
[1747231931084,0.6861197,103440.0,103430.0,2.05869747]
[1747231931278,0.5561197,103440.0,103430.0,2.14849747]
[1747231931474,0.5561197,103440.0,103430.0,2.05181747]
[1747231931678,0.1953197,103440.0,103430.0,2.05181747]
[1747231931890,0.2416338,103450.0,103440.0,0.2899601]
[1747231932078,0.1933078,103450.0,103440.0,0.75447936]
[1747231932281,0.1933078,103450.0,103440.0,0.5109888]
[1747231932590,0.1933078,103450.0,103440.0,2.05933917]
[1747231932591,0.5541078,103450.0,103440.0,2.05933917]
[1747231933183,0.5561078,103450.0,103440.0,2.05933917]
[1747231933389,0.1973078,103450.0,103440.0,2.05933917]
[1747231933684,0.6023947,103470.0,103460.0,0.1932824]
[1747231934078,0.2415947,103470.0,103460.0,0.3590824]
[1747231934284,0.6023947,103470.0,103460.0,0.45573344]
[1747231934489,0.6023947,103470.0,103460.0,0.3590824]
[1747231934691,0.6223947,103470.0,103460.0,0.3590824]
[1747231934891,0.6323947,103470.0,103460.0,0.3610824]
[1747231935390,0.6303947,103470.0,103460.0,0.1678]
[1747231935591,0.9903947,103470.0,103460.0,0.1678]
[1747231936186,0.8696347,103470.0,103460.0,0.3610824]
[1747231936386,0.8676347,103470.0,103460.0,0.37423737]
[1747231936582,0.3668,103470.0,103460.0,0.71437897]
[1747231936788,0.5600637,103470.0,103460.0,0.71437897]
[1747231937091,0.5600637,103470.0,103460.0,0.53893344]
[1747231937394,0.6900637,103470.0,103460.0,0.53893344]
[1747231937591,0.4968,103470.0,103460.0,0.53893344]
[1747231937899,0.00345159,103480.0,103470.0,0.1932637]
[1747231938189,0.19669659,103480.0,103470.0,2.28343426]
[1747231938697,0.19669659,103480.0,103470.0,1.94333104]
[1747231938891,0.88749659,103480.0,103470.0,2.13659474]
[1747231939080,0.89049659,103480.0,103470.0,2.13659474]
[1747231939396,0.69049659,103480.0,103470.0,2.13659474]
[1747231939693,0.69049659,103480.0,103470.0,1.87751474]
[1747231940285,0.93198715,103480.0,103470.0,0.0876]
[1747231940485,1.30638715,103480.0,103470.0,0.0876]
[1747231940689,1.06289659,103480.0,103470.0,0.29499049]
[1747231940894,0.56849659,103480.0,103470.0,1.79499049]
[1747231941099,0.55849659,103480.0,103470.0,1.68742679]
[1747231941284,0.64349659,103480.0,103470.0,1.68742679]
[1747231941491,1.59146715,103480.0,103470.0,1.60172679]
[1747231941791,1.34797659,103480.0,103470.0,1.68742679]
[1747231942887,1.59146715,103480.0,103470.0,1.68742679]
[1747231943693,1.34797659,103480.0,103470.0,1.68742679]
[1747231943887,1.59146715,103480.0,103470.0,1.68742679]
[1747231944996,1.34797659,103480.0,103470.0,1.68742679]
[1747231945795,1.59146715,103480.0,103470.0,1.68742679]
[1747231947389,1.59146715,103480.0,103460.0,0.28110271]
[1747231947390,0.1932637,103470.0,103460.0,0.00562071]
[1747231947594,0.8640637,103470.0,103460.0,0.00562071]
[1747231947891,0.3608,103470.0,103460.0,1.78720311]
[1747231948101,0.5540637,103470.0,103460.0,1.78720311]
[1747231948893,0.5540637,103470.0,103460.0,1.78920311]
[1747231949893,0.5540637,103470.0,103460.0,1.78720311]
[1747231950098,0.5560637,103470.0,103460.0,1.78720311]
[1747231950400,0.5560637,103470.0,103460.0,1.88100311]
[1747231950600,0.5560637,103470.0,103460.0,1.96550311]
[1747231951001,0.5580637,103470.0,103460.0,1.96375112]
[1747231952790,0.1972637,103470.0,103460.0,2.76134472]
[1747231952993,0.1972637,103470.0,103460.0,2.40054472]
[1747231953301,0.1972637,103470.0,103460.0,2.34239825]
[1747231953497,0.1972637,103470.0,103460.0,2.24574625]
[1747231953808,0.1972637,103470.0,103460.0,0.74574625]
[1747231954103,0.1972637,103470.0,103460.0,2.24574625]
[1747231954304,0.004,103470.0,103460.0,2.24574625]
[1747231954492,0.1972637,103470.0,103460.0,2.24574625]
[1747231955200,0.004,103470.0,103460.0,2.95319825]
[1747231955403,0.004,103470.0,103460.0,3.23831825]
[1747231955704,0.004,103470.0,103460.0,2.53086625]
[1747231955906,0.1972637,103470.0,103460.0,2.53086625]
[1747231956403,0.1972637,103470.0,103460.0,2.24574625]
[1747231956600,0.1952637,103470.0,103460.0,2.24574625]
[1747231957099,0.1932637,103470.0,103460.0,2.24574625]
[1747231961010,0.73943369,103480.0,103470.0,0.1932637]
[1747231961205,0.36425159,103480.0,103470.0,0.56040779]
[1747231961406,0.36425159,103480.0,103470.0,0.65704779]
[1747231961600,0.55749659,103480.0,103470.0,0.75369883]
[1747231961807,0.55749659,103480.0,103470.0,2.25369883]
[1747231962408,0.55949659,103480.0,103470.0,2.25369883]
[1747231962611,0.55949659,103480.0,103470.0,1.97171474]
[1747231963104,0.64869659,103480.0,103470.0,1.97171474]
[1747231963804,0.65069659,103480.0,103470.0,1.97171474]
[1747231964803,0.65069659,103480.0,103470.0,2.15705883]
[1747231966312,0.20069659,103480.0,103470.0,2.15705883]
[1747231966807,0.56149659,103480.0,103470.0,2.15705883]
[1747231967412,0.56149659,103480.0,103470.0,1.97171474]
[1747231967711,0.56149659,103480.0,103470.0,2.15705883]
[1747231970813,0.56149659,103480.0,103470.0,2.16267954]
[1747231971313,0.76149659,103480.0,103470.0,1.97733545]
[1747231971519,0.84579659,103480.0,103470.0,1.97733545]
[1747231972704,0.560045,103480.0,103470.0,2.16267954]
[1747231972905,0.006,103480.0,103470.0,2.80546363]
[1747231973302,0.76513909,103500.0,103470.0,2.85377593]
[1747231973502,0.8200693,103500.0,103490.0,0.37857039]
[1747231973913,0.8200693,103500.0,103490.0,0.54737039]
[1747231974117,0.9101693,103500.0,103490.0,2.14401209]
[1747231974511,0.9151693,103500.0,103490.0,2.14401209]
[1747231974710,1.0052693,103500.0,103490.0,2.14401209]